[Event "Romanian Team Blitz Open 2022"]
[Site "Sebes"]
[Date "2022.12.04"]
[Round "2.1"]
[White "Lupulescu, Constantin"]
[Black "Costachi, Mihnea"]
[Result "0-1"]
[ECO "E92"]
[WhiteElo "2591"]
[BlackElo "2476"]
[Annotator "TA"]
[PlyCount "100"]
[EventDate "2022.12.04"]
[EventType "blitz"]
[EventCountry "ROU"]
[SourceTitle "playchess.com"]
[Source "ChessBase"]
[SourceQuality "1"]
[TimeControl "180+2"]

{[%evp 19,100,39,56,37,66,71,77,52,61,68,79,85,155,147,163,166,175,178,207,209,204,201,215,214,234,219,350,342,546,331,321,311,327,316,542,518,811,832,793,776,991,989,985,979,1461,1406,1479,1477,1372,1411,1979,1935,1841,1809,2706,2817,3632,3391,3908,3863,29987,29988,29985,29986,29984,0,0,0,0,0,29982,0,0,0,0,0,0,0,0,0,0,0,0]} 1. c4 {[%emt 0:00:01]} Nf6 {[%emt 0:00:01]} 2. d4 {[%emt 0:00:04]} g6 {[%emt 0:00:01]} 3. Nc3 {[%emt 0:00:02]} Bg7 {[%emt 0:00:01]} 4. e4 {[%emt 0:00:01]} d6 {[%emt 0:00:02]} 5. Be2 {[%emt 0:00:01]} O-O {[%emt 0:00:02]} 6. Be3 {[%emt 0:00:01]} Na6 {[%emt 0:00:16]} 7. Nf3 {[%emt 0:00:13]} e5 {[%emt 0:00:02]} 8. d5 {[%emt 0:00:12]} Ng4 {[%emt 0:00:11]} 9. Bg5 {[%emt 0:00:10]} f6 {[%emt 0:00:01]} 10. Bh4 {[%emt 0:00:01]} Nh6 {[%emt 0:00:16]} 11. Nd2 {[%emt 0:00:07] E92: King's Indian: Classical: 6 Be2 e5: 7 dxe5, 7 Be3 and Petrosian System without 7...Nbd7.} Qe8 {[%emt 0:00:11]} 12. f3 {[%emt 0:00:37]} f5 {[%emt 0:00:12]} 13. O-O {[%emt 0:00:14] White is better.} Nf7 {[%emt 0:00:07]} 14. Rb1 {[%emt 0:00:06] [#]} Bh6 $146 {[%emt 0:00:03]} ({Predecessor:} 14... h5 15. b4 g5 16. Bf2 f4 17. c5 Nh6 18. cxd6 cxd6 19. Nb5 Qg6 20. Nxa7 Bd7 {1-0 (47) Popov,V (2568)-Milov,V (2620) Panormo 2002}) 15. Bf2 {[%emt 0:00:03]} Bxd2 {[%emt 0:00:32]} (15... c6 $142) 16. Qxd2 $16 {[%emt 0:00:02]} f4 {[%emt 0:00:01]} 17. b4 {[%emt 0:00:10]} g5 {[%emt 0:00:02]} 18. c5 {[%emt 0:00:18]} h5 {[%emt 0:00:01]} 19. Kh1 {[%emt 0:00:13]} Qe7 {[%emt 0:00:05][%cal Rd6c5]} 20. c6 {[%emt 0:00:25]} b6 {[%emt 0:00:11]} 21. Qe1 {[%emt 0:00:02]} Nb8 {[%emt 0:00:01]} 22. b5 {[%emt 0:00:04]} a5 {[%emt 0:00:03]} (22... Kh7 {was called for.} 23. a4 a5) 23. Na4 $18 {[%emt 0:00:04]} Nh6 {[%emt 0:00:08]} (23... Qd8 $142 24. Rc1 Ra7) 24. Nxb6 {[%emt 0:00:05]} cxb6 {[%emt 0:00:02]} 25. Bxb6 {[%emt 0:00:01]} g4 {[%emt 0:00:03]} 26. Bf2 {[%emt 0:00:01] Strongly threatening b6.} (26. Bxa5 g3 27. Bb6 (27. hxg3 Rxa5 28. Rb2 fxg3 $14) 27... Rxa2 $16) 26... g3 $2 {[%emt 0:00:08] Against b6} (26... Nd7 27. b6 Nxb6 28. Rxb6 Kh7) 27. hxg3 {[%emt 0:00:02]} Kh7 {[%emt 0:00:31]} (27... fxg3 $142 28. Bxg3 Nd7) 28. b6 {[%emt 0:00:01][%cal Bb5b6,Bb6b7][%mdl 32]} fxg3 {[%emt 0:00:01]} 29. Bxg3 {[%emt 0:00:01]} Ba6 {[%emt 0:00:10]} 30. b7 {[%emt 0:00:05]} ({Less strong is} 30. Qxa5 Nxc6 31. Qd2 (31. dxc6 Bxe2 32. Qe1 Bxf1 $14) 31... Bxe2 32. Qxe2 Nd4 $14) 30... Ra7 {[%emt 0:00:01]} 31. Bf2 {[%emt 0:00:05][%mdl 64] [#] Trapped Piece} Bxe2 {[%emt 0:00:09]} 32. Qxe2 {[%emt 0:00:01]} Ra6 {[%emt 0:00:06]} 33. Rfc1 {[%emt 0:00:01][%cal Bf1c1,Bc1c2,Bc2c7][%mdl 32] Hoping for c7.} Qc7 {[%emt 0:00:04]} 34. Qb5 {[%emt 0:00:04]} Rg8 {[%emt 0:00:04]} 35. Bb6 {[%emt 0:00:02]} Qg7 {[%emt 0:00:04]} 36. Rc2 {[%emt 0:00:03]} (36. Bxa5 $2 Qxg2#) 36... h4 {[%emt 0:00:06]} 37. c7 {[%emt 0:00:04]} h3 {[%emt 0:00:01]} 38. c8=Q {[%emt 0:00:10]} hxg2+ {[%emt 0:00:08]} 39. Kg1 {[%emt 0:00:01]} Qg5 {[%emt 0:00:07]} 40. Rc7+ {[%emt 0:00:05]} Kh8 {[%emt 0:00:01] [#]} 41. Qxg8+ $3 {[%emt 0:00:09]} Nxg8 {[%emt 0:00:03]} 42. Qe8 $2 {[%emt 0:00:04]} (42. Rc8 Kg7 43. Rxb8 Ne7 44. Rg8+ Nxg8 45. b8=Q Kh7 46. Qxa6 Qh6 47. Qaa7+ Kh8 48. Be3) 42... Rxb6 $1 $11 {[%emt 0:00:02][%mdl 64] Remove Defender, Decoy. Really sharp!} 43. Rxb6 $40 {[%emt 0:00:01][%mdl 128] White mounts an attack.} Qe3+ {[%emt 0:00:03]} 44. Kxg2 {[%emt 0:00:01]} Qg5+ $2 {[%emt 0:00:03][%mdl 8192]} (44... Qd2+ $11 45. Kf1 Qd1+ 46. Kg2 Qd2+ 47. Kh1 Qd1+ 48. Kh2 Qd2+ 49. Kg3 Qf4+ 50. Kg2 Qd2+) 45. Kh3 $2 {[%emt 0:00:02]} (45. Kf1 {mates} Qh6 46. Rb1 Na6 47. b8=Q Nxb8 48. Qxb8 a4 49. Qe8 Qh3+ 50. Ke2) 45... Qh6+ {[%emt 0:00:01] The position is equal.} 46. Kg4 {[%emt 0:00:04][%cal Oe8f7] White wants to mate with Qf7!} Qf4+ {[%emt 0:00:01]} 47. Kh5 {[%emt 0:00:01] Rb2 is the strong threat.} Qh6+ {[%emt 0:00:02]} 48. Kg4 {[%emt 0:00:00][%cal Oe8f7,Bh5g4,Bg4h3,Bh3h2][%mdl 32]} Qf4+ {[%emt 0:00:01]} 49. Kh3 {[%emt 0:00:01] Qh5+ would kill now.} Qxf3+ {[%emt 0:00:01]} 50. Kh2 {[%emt 0:00:01] Threatening mate with Qg6.} Qf2+ {[%emt 0:00:00][%mdl 32768] Weighted Error Value: White=0.47/Black=0.63. Loss on time!?} 0-1

[Event "Romanian Team Blitz Open 2022"]
[Site "Sebes"]
[Date "2022.12.04"]
[Round "2.2"]
[White "Sfarlog, Tudor-Vlad"]
[Black "Jianu, Vlad-Cristian"]
[Result "0-1"]
[ECO "A13"]
[WhiteElo "2283"]
[BlackElo "2516"]
[Annotator "TA"]
[PlyCount "92"]
[EventDate "2022.12.04"]
[EventType "blitz"]
[EventCountry "ROU"]
[SourceTitle "playchess.com"]
[Source "ChessBase"]
[SourceQuality "1"]
[TimeControl "180+2"]

{[%evp 9,92,4,18,10,20,16,17,-1,22,8,27,0,24,0,0,0,0,0,0,-5,0,-13,-2,-14,-8,-14,-4,-13,6,12,31,19,31,30,72,0,33,30,51,0,0,-8,-15,-4,-9,-46,-37,-37,-46,-54,-3,-60,-35,-35,-35,-51,-37,-127,-120,-120,-112,-188,-112,-297,-290,-290,-283,-283,-264,-268,-254,-377,-377,-545,-406,-1542,-1499,-1270,-1218,-1091,-610,-5340,-5065,-4610,-4069]} 1. Nf3 {[%emt 0:00:01]} Nf6 {[%emt 0:00:01]} 2. c4 {[%emt 0:00:01]} e6 {[%emt 0:00:00]} 3. g3 {[%emt 0:00:02]} d5 {[%emt 0:00:01]} 4. Bg2 {[%emt 0:00:01]} dxc4 {[%emt 0:00:05]} 5. Qa4+ {[%emt 0:00:01]} Bd7 {[%emt 0:00:02]} 6. Qxc4 {[%emt 0:00:02] A13: English Opening: 1...e6.} c5 {[%emt 0:00:01]} 7. O-O {[%emt 0:00:07]} Bc6 {[%emt 0:00:01]} 8. Qc2 {[%emt 0:00:44] The position is equal.} Nbd7 {[%emt 0:00:01]} 9. Nc3 {[%emt 0:00:01]} Be7 {[%emt 0:00:04] [#]} 10. Rd1 $146 {[%emt 0:00:11]} ({Predecessor:} 10. e4 O-O 11. d4 cxd4 12. Nxd4 Ne5 13. Rd1 Qe8 14. Bf4 Ng6 15. Nxc6 bxc6 16. Bd6 {0-1 (47) Matamoros Franco,C (2498)-Bernadskiy,V (2547) Chess.com INT 2018}) 10... O-O {[%emt 0:00:03]} 11. d4 {[%emt 0:00:01]} (11. e4 $5 {[%cal Rd2d4]}) 11... cxd4 {[%emt 0:00:03]} 12. Nxd4 {[%emt 0:00:02]} Bxg2 {[%emt 0:00:02]} 13. Kxg2 {[%emt 0:00:01]} Rc8 {[%emt 0:00:03]} 14. Bg5 {[%emt 0:00:22]} Qa5 {[%emt 0:00:12]} 15. Bxf6 {[%emt 0:00:05]} (15. Nf3 {simplifies} Ne5 16. Qb3 Nxf3 17. Bxf6 Bxf6 18. exf3 Bxc3 19. bxc3 Rxc3 20. Qxb7 Rc2 21. Rac1) 15... Nxf6 {[%emt 0:00:01][%cal Bd7f6,Bf6g4,Bg4e5,Be5c4][%mdl 32]} 16. Nb3 {[%emt 0:00:05]} Qh5 {[%emt 0:00:11]} 17. Qd3 {[%emt 0:00:06]} a6 {[%emt 0:00:48]} 18. Rac1 {[%emt 0:00:03]} Ng4 {[%emt 0:00:14]} (18... Rfd8 {simplifies} 19. Qf3 Qxf3+ 20. Kxf3 Rxd1 21. Nxd1 Rxc1 22. Nxc1 g5) 19. h3 {[%emt 0:00:03]} Ne5 {[%emt 0:00:02]} (19... Nf6 {simplifies} 20. Qf3 Qxf3+ 21. Kxf3 Rc4) 20. Qe4 {[%emt 0:00:02] [#] aiming for g4.} Nc4 {[%emt 0:00:01]} 21. Qxb7 {[%emt 0:00:10]} Bf6 {[%emt 0:00:01]} 22. g4 {[%emt 0:00:16]} (22. Qxa6 $2 Nxb2 23. Rd4 Bxd4 24. Nxd4 {[#]} Nd1 $1 {[%mdl 512]} 25. Rxd1 Rxc3 $19) (22. Nd4 $16) 22... Qe5 {[%emt 0:00:12]} 23. Ne4 {[%emt 0:00:19][%cal Ob3c5]} (23. Qxa6 $2 {is the wrong capture.} Nxb2 24. Rd4 Qb8 $19) 23... Qxb2 {[%emt 0:00:42]} 24. Nxf6+ (24. Nec5 $14 Ne5 25. Rd2 (25. Nxa6 $2 Rxc1 26. Rxc1 Qxe2 $19) (25. Qxa6 Ra8 $14)) 24... gxf6 $11 {[%emt 0:00:01]} 25. Qe4 {[%emt 0:00:09]} Qxa2 {[%emt 0:00:06]} 26. Rxc4 {[%emt 0:00:10]} Qxb3 {[%emt 0:00:02]} 27. Rdc1 {[%emt 0:00:25]} Rxc4 {[%emt 0:00:03]} 28. Rxc4 $15 {[%emt 0:00:01][%mdl 4096] Endgame KQR-KQR} Rd8 {[%emt 0:00:08]} 29. Qf4 {[%emt 0:00:07]} Qb2 {[%emt 0:00:09]} (29... Rd5 $15) 30. g5 {[%emt 0:00:11]} ({White should play} 30. Qc7 $11 Qd2 31. Ra4) 30... fxg5 {[%emt 0:00:09]} (30... Qxe2 $2 31. gxf6 Qd3 32. Qh6 Qd5+ 33. Kh2 Qd6+ 34. Rf4 $18) (30... f5 $5 {[%cal Rb2e2]} 31. Qc7 Rf8 $15) 31. Qxg5+ {[%emt 0:00:01]} Qg7 {[%emt 0:00:01]} 32. Qxg7+ {[%emt 0:00:02]} Kxg7 {[%emt 0:00:00] KR-KR} 33. Kf3 {[%emt 0:00:03]} (33. Ra4 $15) 33... a5 {[%emt 0:00:04][%cal Ba6a5,Ba5a4][%mdl 32]} 34. Ra4 {[%emt 0:00:11]} Ra8 {[%emt 0:00:00]} 35. Ra3 {[%emt 0:00:01]} (35. Ke4 $17) 35... Kf6 {[%emt 0:00:02]} (35... a4 $19 36. Ke3 Kf6) 36. e4 $2 {[%emt 0:00:01] This move loses the game for White.} (36. Ra4 $17) 36... a4 $19 {[%emt 0:00:03]} 37. Kf4 {[%emt 0:00:01]} e5+ {[%emt 0:00:03]} 38. Kf3 {[%emt 0:00:00]} Kg5 {[%emt 0:00:01]} 39. Kg3 {[%emt 0:00:01]} f5 {[%emt 0:00:04]} 40. h4+ {[%emt 0:00:02]} (40. exf5 $142 Kxf5 41. Kf3) 40... Kf6 {[%emt 0:00:01]} 41. exf5 {[%emt 0:00:01]} (41. f3 $142) 41... Kxf5 {[%emt 0:00:01] Strongly threatening ...Ke4.} 42. f3 {[%emt 0:00:01]} (42. Kf3 $142 h5 43. Ke3) 42... h5 {[%emt 0:00:08] Black is clearly winning.} 43. Kg2 {[%emt 0:00:01]} Kf4 {[%emt 0:00:04]} 44. Kf2 {[%emt 0:00:01]} e4 {[%emt 0:00:01]} 45. Ke2 {[%emt 0:00:04]} exf3+ {[%emt 0:00:03]} 46. Rxf3+ {[%emt 0:00:02]} Kg4 {[%emt 0:00:00] Weighted Error Value: White=0.60/Black=0.14 (very precise)} 0-1

[Event "Romanian Team Blitz Open 2022"]
[Site "Sebes"]
[Date "2022.12.04"]
[Round "2.3"]
[White "Parligras, Mircea-Emilian"]
[Black "Ileana, George"]
[Result "1/2-1/2"]
[ECO "D94"]
[WhiteElo "2567"]
[BlackElo "2343"]
[Annotator "TA"]
[PlyCount "74"]
[EventDate "2022.12.04"]
[EventType "blitz"]
[EventCountry "ROU"]
[SourceTitle "playchess.com"]
[Source "ChessBase"]
[SourceQuality "1"]
[TimeControl "180+2"]

{[%evp 17,74,27,22,25,15,15,45,14,84,45,36,0,0,8,8,-18,-24,-15,-16,-27,0,2,4,-9,0,-8,0,-5,0,0,0,0,0,0,0,0,0,0,0,0,0,0,0,0,14,-6,80,0,0,0,0,0,0,0,0,0,0,0,0]} 1. d4 {[%emt 0:00:02]} d5 {[%emt 0:00:00]} 2. c4 {[%emt 0:00:01]} c6 {[%emt 0:00:01]} 3. Nf3 {[%emt 0:00:01]} Nf6 {[%emt 0:00:02]} 4. e3 {[%emt 0:00:01]} g6 {[%emt 0:00:02]} 5. Nc3 {[%emt 0:00:02]} Bg7 {[%emt 0:00:01]} 6. Be2 {[%emt 0:00:01]} O-O {[%emt 0:00:02]} 7. O-O {[%emt 0:00:03]} Bf5 {[%emt 0:00:05]} 8. b3 {[%emt 0:00:03]} Nbd7 {[%emt 0:00:14]} 9. Bb2 {[%emt 0:00:02]} Ne4 {[%emt 0:00:04]} 10. Rc1 {[%emt 0:00:13] D94: Grünfeld: 4 Nf3 Bg7 5 e3.} Nxc3 {[%emt 0:00:10]} 11. Bxc3 {[%emt 0:00:02]} Re8 {[%emt 0:00:02] [#]} 12. Qd2 $146 {[%emt 0:00:10] White is slightly better.} ({Predecessor:} 12. cxd5 cxd5 13. Bd3 Bxd3 14. Qxd3 Rc8 15. Qb5 Nb6 16. Bb2 Qd7 17. Qa5 Rc6 18. Rxc6 bxc6 {1-0 (37) Santiago,Y (2406)-Heinemann,J (2160) Caleta 2015}) 12... e5 {[%emt 0:00:32]} (12... e6 $11) 13. dxe5 {[%emt 0:00:13]} dxc4 $1 {[%emt 0:00:01]} 14. Bxc4 {[%emt 0:00:16][%cal Oe3e4] Hoping for e4!} Nxe5 {[%emt 0:00:04]} 15. Nxe5 {[%emt 0:00:18]} Bxe5 {[%emt 0:00:04]} 16. Qxd8 {[%emt 0:00:06]} Raxd8 {[%emt 0:00:02]} 17. Bxe5 {[%emt 0:00:02]} Rxe5 {[%emt 0:00:02]} 18. Rfd1 {[%emt 0:00:01] Against Rd2} Ree8 {[%emt 0:00:02]} 19. Kf1 {[%emt 0:00:07]} Kf8 {[%emt 0:00:01]} 20. b4 {[%emt 0:00:07]} a6 {[%emt 0:00:03]} 21. a3 {[%emt 0:00:02]} Ke7 {[%emt 0:00:03]} 22. Ke2 {[%emt 0:00:02]} Be6 {[%emt 0:00:01]} 23. Bxe6 {[%emt 0:00:12]} Kxe6 $11 {[%emt 0:00:02][%mdl 4096] Endgame KRR-KRR} 24. e4 {[%emt 0:00:06]} f5 {[%emt 0:00:09]} 25. f3 {[%emt 0:00:12]} fxe4 {[%emt 0:00:18]} 26. fxe4 {[%emt 0:00:02]} Rxd1 {[%emt 0:00:09]} 27. Rxd1 {[%emt 0:00:01] KR-KR} a5 {[%emt 0:00:01]} 28. bxa5 {[%emt 0:00:12]} Ra8 {[%emt 0:00:19]} 29. Rb1 {[%emt 0:00:02]} Ra7 {[%emt 0:00:02]} 30. Rb6 {[%emt 0:00:18][%cal Oa5a6]} Kd6 {[%emt 0:00:04] Inhibits a6.} 31. Ke3 {[%emt 0:00:14][%cal Oa5a6]} h5 {[%emt 0:00:08] [#]} (31... Kc7 $11 {keeps the balance.}) 32. Rb4 {[%emt 0:00:08]} (32. a6 $1 $16 {[%cal Ra6b7]} bxa6 33. Kd4) 32... Rxa5 {[%emt 0:00:04] The position is equal.} 33. Rxb7 {[%emt 0:00:01]} Rxa3+ {[%emt 0:00:10]} 34. Kf4 {[%emt 0:00:02]} Ra2 {[%emt 0:00:03]} 35. Kf3 {[%emt 0:00:06]} Ra3+ {[%emt 0:00:03]} 36. Kf4 {[%emt 0:00:01]} Ra2 {[%emt 0:00:01]} 37. Kf3 {[%emt 0:00:07]} Ke5 {[%emt 0:01:05] Weighted Error Value: White=0.12 (very precise) /Black=0.15 (very precise)} 1/2-1/2

[Event "Romanian Team Blitz Open 2022"]
[Site "Sebes"]
[Date "2022.12.04"]
[Round "2.4"]
[White "Tampea, Radu"]
[Black "Gavrilescu, David"]
[Result "0-1"]
[ECO "B13"]
[WhiteElo "2110"]
[BlackElo "2523"]
[Annotator "TA"]
[PlyCount "60"]
[EventDate "2022.12.04"]
[EventType "blitz"]
[EventCountry "ROU"]
[SourceTitle "playchess.com"]
[Source "ChessBase"]
[SourceQuality "1"]
[TimeControl "180+2"]

{[%evp 9,60,4,10,0,0,-13,-8,-8,0,0,0,0,-2,-14,-13,-12,-11,-50,-57,-34,-47,-64,-66,-70,-77,-81,-75,-157,-142,-177,-84,-89,-94,-96,-57,-59,-41,-40,-42,-31,-32,-26,-15,-97,-95,-94,-53,-78,-78,-77,-69,-1267,-1233]} 1. d4 {[%emt 0:00:01]} d5 {[%emt 0:00:01]} 2. Bf4 {[%emt 0:00:01]} c5 {[%emt 0:00:01]} 3. e3 {[%emt 0:00:01]} cxd4 {[%emt 0:00:01]} 4. exd4 {[%emt 0:00:01]} Nc6 {[%emt 0:00:01]} 5. c3 {[%emt 0:00:01]} Bf5 {[%emt 0:00:02]} 6. Nd2 {[%emt 0:00:03] B13: Caro-Kann: Exchange Variation and Panov-Botvinnik Attack.} e6 {[%emt 0:00:01]} 7. Qb3 {[%emt 0:00:01]} Qd7 {[%emt 0:00:01]} 8. Ngf3 {[%emt 0:00:01] The position is equal.} f6 {[%emt 0:00:01]} 9. h4 {[%emt 0:00:07] Prevents g5.} Nh6 {[%emt 0:00:02]} 10. Be2 {[%emt 0:00:02]} Nf7 {[%emt 0:00:02] [#]} 11. O-O $146 {[%emt 0:00:04]} ({Predecessor:} 11. h5 e5 12. dxe5 fxe5 13. Bg3 Bc5 14. Qb5 Bb6 15. Rd1 Bc2 16. Rc1 Bf5 17. Rd1 {1-0 (63) Kamsky,G (2661)-Dreev,A (2623) Chess.com INT 2022}) 11... Be7 {[%emt 0:00:03]} 12. Bg3 {[%emt 0:00:25]} O-O {[%emt 0:00:07]} 13. c4 {[%emt 0:00:03]} dxc4 14. Bxc4 {[%emt 0:00:01]} Na5 {[%emt 0:00:07]} 15. Qc3 {[%emt 0:00:01]} Nxc4 {[%emt 0:00:02]} 16. Nxc4 {[%emt 0:00:02]} Rac8 {[%emt 0:00:03] And now ...b5 would win.} 17. Qb3 {[%emt 0:00:07]} Be4 {[%emt 0:00:06] ...Bd5 is the strong threat.} 18. Ncd2 {[%emt 0:00:07]} ({White should play} 18. Ne3) 18... Bd5 $17 {[%emt 0:00:01]} 19. Qe3 {[%emt 0:00:00]} Nd6 {[%emt 0:00:02]} (19... Qb5 $19 {is more deadly.} 20. b3 Nh6) 20. Bxd6 {[%emt 0:00:08]} Bxd6 {[%emt 0:00:06]} 21. Ne4 {[%emt 0:00:01]} Be7 {[%emt 0:00:04][%cal Bd6e7,Be7c5,Bc5f2][%mdl 32] Black is more active. This pair of bishops is nice.} 22. Rac1 {[%emt 0:00:02]} b6 {[%emt 0:00:06]} ({Much worse is} 22... Bxa2 23. b3 $11) 23. Nc3 {[%emt 0:00:05]} Bxf3 {[%emt 0:00:17]} 24. Qxf3 {[%emt 0:00:01]} Qxd4 {[%emt 0:00:02]} 25. Qb7 {[%emt 0:00:01][%csl LRa7,LRe7]} Bc5 {[%emt 0:00:18]} 26. Qxa7 {[%emt 0:00:14]} (26. Ne4 $11 {remains equal.}) 26... Qxh4 {[%emt 0:00:02] Threatens to win with ...Bd6.} 27. Qd7 {[%emt 0:00:02] Inhibits Bd6.} Rce8 {[%emt 0:00:13]} 28. Rce1 {[%emt 0:00:07]} Re7 {[%emt 0:00:02]} 29. Qc6 {[%emt 0:00:02][%cal Oe1e4] [#]} Qc4 {[%emt 0:00:11][%cal Oc5f2] Hoping for ...Bxf2+!} 30. Re4 $2 {[%emt 0:00:09][%mdl 8192] [#]} (30. Re3 $15) 30... Bxf2+ $1 {[%emt 0:00:03][%mdl 512] Weighted Error Value: White=0.36/Black=0.10 (very precise)} 0-1

[Event "Romanian Team Blitz Open 2022"]
[Site "Sebes"]
[Date "2022.12.04"]
[Round "2.5"]
[White "Szabo, Gergely-Andras-Gyula"]
[Black "Ardelean, George-Catalin"]
[Result "1/2-1/2"]
[ECO "D31"]
[WhiteElo "2514"]
[BlackElo "2473"]
[Annotator "TA"]
[PlyCount "33"]
[EventDate "2022.12.04"]
[EventType "blitz"]
[EventCountry "ROU"]
[SourceTitle "playchess.com"]
[Source "ChessBase"]
[SourceQuality "1"]
[TimeControl "180+2"]

{[%evp 9,20,21,30,0,1,0,2,0,10,0,0,0,0]} 1. d4 {[%emt 0:00:02]} d5 {[%emt 0:00:02]} 2. c4 {[%emt 0:00:02]} e6 {[%emt 0:00:01]} 3. Nc3 {[%emt 0:00:02]} a6 {[%emt 0:00:03]} 4. cxd5 {[%emt 0:00:03]} exd5 {[%emt 0:00:01]} 5. Nf3 {[%emt 0:00:05]} c6 {[%emt 0:00:05]} 6. Bg5 {[%emt 0:00:05] D31: Queen's Gambit Declined: Semi-Slav without ...Nf6 (+ Marshall Gambit and Noteboom) and Exchange Variation lines without ...Nf6.} Be7 {[%emt 0:00:02] The position is equal.} 7. Bxe7 {[%emt 0:00:04]} Nxe7 {[%emt 0:00:02]} 8. e3 {[%emt 0:00:02]} O-O {[%emt 0:00:03]} 9. Bd3 {[%emt 0:00:02]} Bf5 {[%emt 0:00:02]} 10. O-O {[%emt 0:00:04]} Nd7 {[%emt 0:00:03] [#] Not much happened in this game.   Weighted Error Value: White=0.08 (flawless) /Black=0.02 (flawless)} {Predecessor:} 11. Rc1 $146 Re8 12. h3 Bxd3 13. Qxd3 Nf6 14. Nd2 Nc8 15. Na4 Nd6 16. Nc5 a5 17. a4 {0-1 (48) Omelja,A (2515)-Lenderman,A (2600) Chess.com INT 2022} 1/2-1/2

[Event "Romanian Team Blitz Open 2022"]
[Site "Sebes"]
[Date "2022.12.04"]
[Round "2.6"]
[White "Murariu, Andrei"]
[Black "Nevednichy, Vladislav"]
[Result "1/2-1/2"]
[ECO "C03"]
[WhiteElo "2493"]
[BlackElo "2499"]
[Annotator "TA"]
[PlyCount "51"]
[EventDate "2022.12.04"]
[EventType "blitz"]
[EventCountry "ROU"]
[SourceTitle "playchess.com"]
[Source "ChessBase"]
[SourceQuality "1"]
[TimeControl "180+2"]

{[%evp 9,51,17,31,32,36,28,33,1,19,-16,-17,-39,-37,-31,-17,-25,-22,-44,-48,-60,-16,-37,-30,-20,0,-4,0,14,10,6,78,18,35,0,58,54,48,-26,139,84,86,66,66,8]} 1. e4 {[%emt 0:00:02]} e6 {[%emt 0:00:06]} 2. d4 {[%emt 0:00:02]} d5 {[%emt 0:00:01]} 3. Nd2 {[%emt 0:00:02]} Be7 {[%emt 0:00:02]} 4. Ngf3 {[%emt 0:00:13]} Nf6 {[%emt 0:00:01]} 5. Bd3 {[%emt 0:00:11]} O-O {[%emt 0:00:03]} 6. O-O {[%emt 0:00:03] C03: French Tarrasch: Unusual Black 3rd moves.} c5 {[%emt 0:00:02]} 7. dxc5 {[%emt 0:00:07]} a5 {[%emt 0:00:02]} 8. Qe2 {[%emt 0:00:08]} Na6 {[%emt 0:00:05]} 9. b3 {[%emt 0:00:08]} Nxc5 {[%emt 0:00:08]} 10. Bb2 {[%emt 0:00:09]} Nxd3 {[%emt 0:00:15]} 11. cxd3 {[%emt 0:00:02]} b6 {[%emt 0:00:03] [#]} 12. Rac1 $146 {[%emt 0:00:36]} ({Predecessor:} 12. Rfd1 Ba6 13. Qe3 Bc5 14. d4 Be7 15. e5 Nd7 16. Rac1 Rc8 17. Nb1 b5 18. h3 {0-1 (36) Li,J (1943)-Kumar,A (2169) Sturbridge 2018}) 12... Ba6 {[%emt 0:00:08] Strongly threatening ...dxe4.} 13. e5 {[%emt 0:00:03]} Nd7 {[%emt 0:00:02]} 14. Nd4 {[%emt 0:00:03]} Bc5 {[%emt 0:00:18]} (14... Nc5 $5 {[%cal Rc5d3]} 15. Rc3 Qd7 $15) 15. Kh1 {[%emt 0:00:15]} Rc8 {[%emt 0:00:06]} (15... Qh4 {keeps more tension.} 16. N2f3 Qh5 17. a4 Bb4) 16. f4 {[%emt 0:00:03]} Bxd4 {[%emt 0:00:32]} 17. Bxd4 {[%emt 0:00:02]} Qe7 {[%emt 0:00:01]} 18. Nf3 {[%emt 0:00:07]} Qb4 {[%emt 0:00:08]} 19. Qe3 {[%emt 0:00:19][%cal Of4f5]} Qb5 {[%emt 0:00:02] [#] Inhibits f5.} (19... Nc5 $11) 20. Rfd1 {[%emt 0:00:13]} (20. Rcd1 $1 $16) 20... Rxc1 {[%emt 0:00:06]} 21. Rxc1 {[%emt 0:00:07]} Rc8 {[%emt 0:00:06] Against Rc7} (21... h6 $11) 22. Rxc8+ $14 {[%emt 0:00:02]} Bxc8 {[%emt 0:00:01]} 23. Qc1 {[%emt 0:00:07]} (23. f5 $1 $14) 23... Qa6 $2 {[%emt 0:00:30] [#]} ({Better is} 23... Nc5 $11) 24. Qc7 {[%emt 0:00:11]} (24. f5 $142 $1) 24... h6 $16 {[%emt 0:00:06]} 25. Ne1 {[%emt 0:00:17] White is much more active.} Qb7 {[%emt 0:00:02]} 26. Qxb7 {[%emt 0:00:02] Weighted Error Value: White=0.25 (precise) /Black=0.26 (precise)} (26. Qd6 $14) 1/2-1/2